bitfinex-derivatives/quotes_ETHF0:USTF0_20260128
["timestamp","ask_amount","ask_price","bid_price","bid_amount"]
[1769562949826,1.34241198,3019.9,3018.9,0.15033198]
[1769562950025,0.00403361,3020.0,3018.9,0.15033198]
[1769562950225,0.15420417,3019.9,3019.2,0.15033198]
[1769562951228,0.00403361,3020.0,3019.2,0.15033198]
[1769562952727,0.00403361,3020.0,3019.2,0.31615198]
[1769562953035,0.15420417,3020.3,3019.5,0.15033198]
[1769562953833,0.00401188,3020.3,3019.5,0.15033198]
[1769562956235,0.00401188,3020.3,3019.7,0.15392044]
[1769562959325,0.00401188,3020.3,3019.7,1.49633242]
[1769562959628,0.14701307,3020.9,3019.9,0.15392044]
[1769562960737,0.15032434,3020.9,3019.9,0.15392044]
[1769562961237,0.15032434,3020.9,3020.0,0.15392044]
[1769562961536,0.15032434,3020.9,3020.1,0.15392044]
[1769562961537,0.00331127,3020.9,3020.1,0.15392044]
[1769562964738,0.94431127,3020.9,3020.1,0.15392044]
[1769562968042,0.14701307,3021.8,3020.7,0.10507745]
[1769562969033,0.15062605,3021.8,3020.7,0.10507745]
[1769562969234,0.15062605,3021.8,3020.4,0.1049325]
[1769562969447,0.14701307,3021.6,3020.4,0.1049325]
[1769562969943,0.14701307,3021.6,3020.1,0.16577]
[1769562970246,0.14701307,3021.3,3020.2,0.10467775]
[1769562970437,0.14701307,3021.3,3020.1,0.16577]
[1769562970745,0.14701307,3021.3,3020.1,0.27044775]
[1769562970944,0.14701307,3021.3,3020.2,0.10467775]
[1769562971139,0.14701307,3021.3,3020.2,0.27044775]
[1769562971441,0.14701307,3021.3,3020.3,0.10211125]
[1769562971745,0.14701307,3021.3,3020.4,0.10211125]
[1769562972338,0.14701307,3021.5,3020.4,0.10211125]
[1769562974642,0.14701307,3021.2,3020.2,0.16577]
[1769562983753,0.14701307,3021.2,3019.7,0.26913723]
[1769562983949,0.14701307,3021.2,3019.7,0.1658]
[1769562985052,0.14469945,3021.1,3019.7,0.1658]
[1769562987156,0.14469945,3021.1,3019.7,0.2641845]
[1769562987355,0.14469945,3021.1,3019.8,0.0983845]
[1769562994449,0.14469945,3021.1,3019.9,0.09714503]
[1769562995057,0.14469945,3021.1,3020.1,0.09622764]
[1769563000263,0.14469945,3021.1,3020.0,0.16578]
[1769563002965,0.14469945,3021.1,3020.1,0.09663249]
[1769563007169,0.14469945,3021.1,3020.0,0.16578]
[1769563007370,0.14469945,3020.9,3019.5,0.25640617]
[1769563007870,0.14469945,3020.9,3019.6,0.09059617]
[1769563011871,0.14469945,3020.7,3019.6,0.09059617]
[1769563012176,0.14469945,3020.7,3019.5,0.16581]
[1769563012376,0.14469945,3020.7,3019.6,0.08916955]
[1769563012581,0.14469945,3020.7,3019.6,0.25496955]
[1769563012783,0.14469945,3020.7,3019.8,0.08916955]
[1769563014779,0.1457805,3021.3,3020.0,0.0896149]
[1769563014983,0.1457805,3021.1,3020.1,0.08947112]
[1769563015784,0.1457805,3021.5,3020.4,0.08947112]
[1769563016085,0.1457805,3021.5,3020.4,0.25523112]
[1769563016381,0.1457805,3021.5,3020.5,0.08932899]
[1769563019188,0.1457805,3021.5,3020.6,0.09442585]
[1769563019480,0.9134,3021.6,3020.7,0.09442585]
[1769563020187,0.9134,3021.6,3020.8,0.09428789]
[1769563020977,1.0591805,3021.6,3020.8,0.09428789]
[1769563021176,0.1457805,3021.5,3020.8,0.09428789]
[1769563021380,0.1457805,3021.5,3020.7,0.16574]
[1769563022087,0.1457805,3021.5,3020.3,0.08933767]
[1769563022484,0.1457805,3021.5,3020.3,0.25509767]
[1769563023184,0.1457805,3021.5,3020.4,0.16576]
[1769563023386,0.1457805,3021.5,3020.3,0.08933767]
[1769563024479,0.1457805,3021.5,3020.6,0.16575]
[1769563024681,0.1457805,3021.5,3020.8,0.16574]
[1769563024887,0.83541298,3021.8,3020.8,0.25470038]
[1769563024888,0.1457805,3021.7,3020.8,0.25470038]
[1769563029293,0.83541298,3021.8,3021.0,0.08794094]
[1769563029493,0.98119348,3021.8,3021.1,0.08794094]
[1769563030097,0.1457805,3021.7,3021.0,0.16904584]
[1769563031993,0.1457805,3021.7,3020.5,0.25243999]
[1769563032896,0.1457805,3021.7,3020.6,0.16575]
[1769563033096,0.1457805,3021.7,3020.6,0.16968607]
[1769563033294,0.83541298,3021.8,3020.9,0.08771414]
[1769563033600,0.98119348,3021.8,3020.9,0.08771414]
[1769563034502,0.98119348,3021.8,3020.9,0.25344414]
[1769563036205,0.1457805,3021.7,3020.9,0.25344414]
[1769563037097,0.1457805,3021.7,3020.7,0.08965292]
[1769563037297,0.1457805,3021.7,3020.6,0.00393607]
[1769563038501,0.1457805,3021.7,3020.6,0.09347777]
[1769563039800,0.1457805,3021.7,3020.6,0.00393607]
[1769563040296,0.1457805,3021.6,3020.6,0.00393607]
[1769563042398,0.1457805,3021.6,3018.8,13.73084886]
[1769563042399,0.1457805,3020.8,3019.4,0.16581]
[1769563042596,0.1457805,3020.8,3019.4,0.31935451]
[1769563042797,0.1457805,3020.8,3019.5,0.15354451]
[1769563043198,0.1457805,3020.8,3019.5,0.15703856]
[1769563046902,0.1457805,3020.8,3019.5,0.32284856]
[1769563047202,0.1457805,3020.8,3019.6,0.1453449]
[1769563050404,0.1457805,3020.8,3019.5,0.16930405]
[1769563053111,0.14394737,3020.5,3019.5,0.16930405]
[1769563058617,0.14394737,3020.8,3019.7,0.1453449]
[1769563067628,0.14394737,3020.8,3019.8,0.1453449]
[1769563068029,1.75381894,3021.1,3020.0,0.1453449]
[1769563068222,0.14394737,3021.0,3020.1,0.1453449]
[1769563068835,0.14394737,3021.0,3020.1,0.3111149]
[1769563069028,0.14394737,3021.3,3020.5,0.1453449]
[1769563070026,0.14394737,3021.3,3020.4,0.16576]
[1769563071422,0.14394737,3021.3,3020.4,0.3111049]
[1769563072028,0.14394737,3021.3,3020.5,0.1453449]
[1769563072421,1.2066,3021.4,3020.5,0.1453449]
[1769563073528,1.2066,3021.4,3020.6,0.1453449]
[1769563073929,1.35054737,3021.4,3020.6,0.1453449]
[1769563077630,0.13974928,3021.3,3020.5,0.16575]
[1769563077825,0.13974928,3021.3,3020.5,0.30439247]
[1769563078227,0.13974928,3021.3,3020.5,0.16575]
[1769563082636,0.13974928,3021.3,3020.6,0.16575]
[1769563082830,1.2066,3021.4,3020.6,0.13864247]
[1769563083027,1.2066,3021.4,3020.8,0.13864247]
[1769563083436,0.13974928,3021.3,3020.9,0.16573]
[1769563084741,0.13974928,3021.3,3020.5,0.13864247]
[1769563089236,0.13974928,3021.3,3020.5,0.30439247]
[1769563089630,0.13974928,3021.3,3020.6,0.16575]
[1769563091137,0.13974928,3021.3,3020.1,0.30442247]
[1769563091543,0.13974928,3021.3,3020.2,0.13864247]
[1769563091935,0.13974928,3021.2,3020.2,0.13864247]
[1769563092539,0.13974928,3021.2,3020.1,0.16578]
[1769563092839,0.13974928,3021.2,3020.1,0.13864247]
[1769563093035,0.13974928,3021.2,3020.5,0.16575]
[1769563094334,0.13974928,3021.0,3020.5,0.16575]
[1769563094541,0.13974928,3021.0,3020.1,0.13864247]
[1769563094740,0.13974928,3021.0,3020.5,0.16575]
[1769563095133,0.13974928,3021.0,3020.1,0.13864247]
[1769563096541,0.13974928,3021.0,3020.5,0.16575]
[1769563096938,0.13974928,3021.0,3020.1,0.13864247]
[1769563098543,0.13974928,3021.0,3020.2,0.13864247]
[1769563099143,0.13974928,3021.0,3020.3,0.13864247]
[1769563100442,1.24,3021.1,3020.4,0.13864247]
[1769563101042,1.24,3021.1,3020.5,0.13864247]
[1769563101739,1.24,3021.1,3020.6,0.13864247]
[1769563104847,1.24,3021.1,3020.6,0.30439247]
[1769563105335,1.24,3021.1,3020.7,0.16574]
[1769563105538,1.38549072,3021.1,3020.7,0.16574]
[1769563106944,0.00361298,3021.8,3021.1,0.30842684]
[1769563107142,0.00361298,3021.8,3021.1,0.16572]
[1769563108148,0.00361298,3021.8,3021.2,0.14270684]
[1769563110149,0.00361298,3021.8,3021.2,0.30841684]
[1769563110349,0.14549072,3022.0,3021.4,0.1657]
[1769563110549,0.14549072,3022.5,3021.5,0.14270684]
[1769563110751,1.41209072,3022.7,3022.0,0.16567]
[1769563111053,1.41209072,3022.7,3022.1,0.16567]
[1769563111253,0.14549072,3022.6,3022.1,0.16990226]
[1769563111655,0.14549072,3022.6,3021.6,0.14270684]
[1769563111855,0.14549072,3022.6,3021.2,0.16571]
[1769563112154,0.14549072,3022.6,3021.3,0.14270684]
[1769563112553,0.14549072,3022.6,3021.3,0.14632317]
[1769563122270,0.14549072,3022.6,3021.4,0.14270684]
[1769563122770,1.2692687,3022.7,3021.6,0.14270684]
[1769563123078,0.14549072,3022.6,3021.6,0.14270684]
[1769563125080,1.2692687,3022.7,3021.6,0.14270684]
[1769563125280,1.41475942,3022.7,3021.6,0.14270684]
[1769563125574,0.14549072,3022.6,3021.6,0.14270684]
[1769563127979,1.2692687,3022.7,3021.7,0.14270684]
[1769563129774,1.2692687,3022.7,3021.8,0.14270684]
[1769563130379,0.14549072,3023.2,3022.0,0.14270684]
[1769563130773,0.14549072,3023.4,3022.2,0.14270684]
[1769563131381,0.14904932,3023.4,3022.2,0.14270684]
[1769563131581,0.14549072,3023.7,3022.6,0.14270684]
[1769563132582,0.14888409,3023.7,3022.6,0.14270684]
[1769563134474,0.14888409,3023.7,3022.7,0.14688825]
[1769563134679,0.00339337,3023.7,3022.8,0.14688825]
[1769563135476,0.14592418,3023.7,3022.8,0.14688825]
[1769563139680,0.00339337,3023.7,3022.8,0.14688825]
[1769563141578,0.14592418,3023.7,3022.8,0.14688825]
[1769563143087,0.14592418,3023.7,3022.5,0.31252825]
[1769563143284,0.14592418,3023.7,3022.6,0.14688825]
[1769563144787,0.14592418,3023.7,3022.1,0.14688825]
[1769563148093,0.14592418,3023.7,3022.2,0.14688825]
[1769563153794,0.14253081,3023.4,3021.7,0.14688825]
[1769563153998,0.30813081,3023.3,3021.7,0.14688825]
[1769563154199,0.14253081,3023.2,3021.7,0.14688825]
[1769563154499,0.14253081,3023.1,3021.7,0.14688825]
[1769563155094,0.14253081,3023.1,3021.8,0.14688825]
[1769563159203,0.14253081,3022.9,3021.8,0.14688825]
[1769563160109,0.14253081,3022.9,3021.5,0.14688825]
[1769563161711,0.14253081,3022.9,3022.0,0.14688825]
[1769563163905,0.14143878,3022.7,3021.4,0.14007636]
[1769563165213,0.14426189,3022.9,3022.0,0.14577348]
[1769563165613,0.2494,3023.0,3022.3,0.14577348]
[1769563170114,2.757,3023.6,3021.7,1.60852941]
[1769563170115,2.90126189,3023.6,3022.6,0.14577348]
[1769563172306,0.14426189,3023.5,3022.6,0.14577348]
[1769563172612,0.14426189,3023.5,3022.4,0.14577348]
[1769563174007,0.14426189,3023.4,3022.2,1.77418941]
[1769563174405,0.14426189,3023.4,3022.2,1.91996289]
[1769563174609,0.14426189,3023.4,3022.3,0.14577348]
[1769563181719,0.14730595,3023.4,3022.6,0.14577348]
[1769563185134,0.14730595,3023.4,3022.5,1.60852941]
[1769563185324,0.14730595,3023.4,3022.4,0.14577348]
[1769563187026,0.14426189,3023.1,3022.3,0.00311945]
[1769563187927,0.14426189,3023.1,3022.3,0.14889293]
[1769563188123,0.00304406,3023.4,3022.6,0.14577348]
[1769563188630,0.14730595,3023.4,3022.6,0.14577348]
[1769563189924,0.14730595,3023.4,3022.3,0.14889293]
[1769563190127,0.14426189,3023.3,3022.3,0.00311945]
[1769563196832,0.13657601,3023.0,3022.0,0.14577348]
[1769563198029,0.13657601,3023.0,3022.0,0.00372627]
[1769563200830,0.13657601,3022.4,3021.6,5.8883271]
[1769563201023,0.13657601,3022.4,3021.1,6.02909581]
[1769563201224,0.13657601,3022.4,3021.1,0.14076871]
[1769563201524,0.13657601,3022.1,3021.1,0.14076871]
[1769563202526,0.13657601,3022.1,3020.7,0.14076871]
[1769563202828,0.13657601,3022.1,3020.9,0.14076871]
[1769563203225,0.13657601,3022.4,3021.1,1.60852941]
[1769563203432,0.13657601,3022.4,3021.2,0.14076871]
[1769563204132,0.13657601,3022.4,3021.2,0.00337582]
[1769563207534,0.13657601,3022.4,3021.5,0.14076871]
[1769563229356,3.30012846,3022.3,3021.5,0.14076871]
[1769563229650,0.13657601,3022.4,3021.5,0.14076871]
[1769563229854,3.30015702,3022.3,3021.5,0.14076871]
[1769563230057,0.13657601,3022.4,3021.5,0.14076871]
[1769563230353,3.3001568,3022.3,3021.5,0.14076871]
[1769563230554,0.13657601,3022.4,3021.5,0.14076871]
[1769563230746,3.30018408,3022.3,3021.5,0.14076871]
[1769563230944,0.13657601,3022.4,3021.5,0.14076871]
[1769563231148,3.30019052,3022.3,3021.5,0.14076871]
[1769563231349,0.13657601,3022.4,3021.5,0.14076871]
[1769563231556,3.3003893,3022.3,3021.5,0.14076871]
[1769563231756,0.13657601,3022.4,3021.5,0.14076871]
[1769563231956,3.30038943,3022.3,3021.5,0.14076871]
[1769563232159,0.13657601,3022.4,3021.5,0.14076871]
[1769563232353,3.30039211,3022.3,3021.5,0.14076871]
[1769563232656,2.1244804,3022.6,3021.5,0.14076871]
[1769563232855,0.1444804,3023.0,3021.5,0.14076871]
[1769563233051,3.30087176,3022.9,3021.5,0.14076871]
[1769563233255,3.30087176,3022.8,3021.5,0.14076871]
[1769563233459,3.0064804,3023.0,3021.5,0.14076871]
[1769563233657,3.29915124,3022.9,3021.5,0.14076871]
[1769563233850,3.0064804,3023.0,3021.7,0.1398168]
[1769563234251,2.862,3023.0,3021.7,0.1398168]
[1769563234660,0.3100804,3023.3,3021.7,0.1398168]
[1769563234859,0.1444804,3023.2,3021.7,0.1398168]
[1769563236362,0.1444804,3023.2,3021.8,0.1398168]
[1769563236560,0.1444804,3023.2,3021.9,0.1398168]
[1769563236755,0.14752446,3023.4,3022.1,0.1398168]
[1769563245179,0.14752446,3023.4,3021.9,0.1398168]
[1769563245864,0.14752446,3023.4,3022.1,0.1398168]
[1769563246062,0.14752446,3023.4,3022.3,0.1398168]
[1769563246867,0.14752446,3023.4,3022.1,0.1398168]
[1769563261195,0.14752446,3023.4,3021.9,0.1456575]
[1769563261494,0.14216864,3023.2,3021.9,0.1456575]
[1769563262386,0.14216864,3023.0,3021.9,0.1456575]
[1769563263189,0.16864406,3023.4,3021.9,0.1456575]
[1769563263190,3.41618111,3022.9,3021.9,0.1456575]
[1769563263492,0.14216864,3022.9,3021.9,0.1456575]
[1769563265495,0.14216864,3022.7,3021.6,0.1456575]
[1769563265797,0.14216864,3022.7,3021.3,0.1456575]
[1769563268196,0.14216864,3022.5,3021.2,0.00337582]
[1769563268500,0.14216864,3022.3,3021.2,0.14903332]
[1769563269597,0.14216864,3022.1,3021.2,0.14903332]
[1769563272204,0.14216864,3022.7,3021.2,0.14903332]
[1769563272506,3.40918475,3022.6,3021.2,0.14903332]
[1769563272810,3.26701611,3022.5,3021.2,0.14903332]
[1769563273011,0.14216864,3022.6,3021.2,0.14903332]
[1769563283613,0.14216864,3022.4,3021.2,0.14903332]
[1769563283808,1.60943622,3022.2,3021.2,0.14903332]
[1769563284014,0.14444359,3022.1,3021.2,0.14903332]
[1769563286616,0.14170001,3022.4,3021.2,0.14903332]
[1769563289211,0.30734001,3022.6,3021.4,0.14409806]
[1769563289513,0.14170001,3022.4,3021.2,0.00337582]
[1769563289716,0.14170001,3022.4,3021.2,0.14747388]
[1769563290813,0.14170001,3022.1,3021.2,0.00337582]
[1769563291211,0.30735001,3022.4,3021.2,0.14747388]
[1769563291519,0.14170001,3022.2,3021.2,0.14747388]
[1769563298125,0.14170001,3022.7,3021.2,0.14747388]
[1769563298324,0.14170001,3022.5,3021.2,0.14747388]
[1769563298513,3.42713355,3022.4,3021.2,0.14747388]
[1769563298712,0.14170001,3022.4,3021.2,0.14747388]
[1769563301524,0.14170001,3022.4,3021.4,0.14409806]
[1769563303228,4.59506622,3022.8,3021.4,0.14409806]
[1769563303229,3.42716037,3022.3,3021.4,0.14409806]
[1769563303528,3.28546036,3022.2,3021.4,0.14409806]
[1769563303730,0.14170001,3022.3,3021.4,0.14409806]
[1769563303926,3.28546036,3022.2,3021.4,0.14409806]
[1769563304228,0.14170001,3022.3,3021.4,0.14409806]
[1769563304432,3.28548862,3022.2,3021.4,0.14409806]
[1769563304628,0.14170001,3022.3,3021.4,0.14409806]
[1769563304830,3.28548879,3022.2,3021.4,0.14409806]
[1769563305030,0.14170001,3022.3,3021.4,0.14409806]
[1769563305229,3.28561457,3022.2,3021.4,0.14409806]
[1769563305431,0.14170001,3022.3,3021.4,0.14409806]
[1769563305628,3.28561457,3022.2,3021.4,0.14409806]
[1769563305925,0.14170001,3022.3,3021.2,0.00337582]
[1769563306132,0.14170001,3022.1,3021.2,0.00337582]
[1769563306426,0.14170001,3022.1,3021.2,0.14747388]
[1769563320043,0.14170001,3022.1,3021.2,0.00337582]
[1769563321641,1.77509622,3022.2,3020.3,6.0540871]
[1769563321642,0.13514646,3021.8,3020.9,0.13785582]
[1769563322742,0.13514646,3021.8,3020.9,0.14053411]
[1769563323841,0.13514646,3021.5,3020.5,0.13785582]
[1769563325040,0.13514646,3021.5,3020.5,0.14167471]
[1769563327245,0.13514646,3021.5,3020.5,0.00381889]
[1769563327449,0.13514646,3020.6,3019.8,0.13785582]
[1769563328347,0.13514646,3020.6,3019.8,0.14139127]
[1769563328649,0.13863069,3020.6,3019.8,0.14139127]
[1769563332253,0.13863069,3020.6,3019.8,0.00353545]
[1769563333165,0.13514646,3020.0,3018.8,0.13785582]
[1769563334155,0.13514646,3020.0,3018.8,0.14019958]
[1769563341866,0.13514646,3019.7,3018.8,0.14019958]
[1769563346870,0.13514646,3019.7,3018.8,0.00234376]
[1769563347168,0.13514646,3019.7,3018.8,0.14470277]
[1769563354472,0.13514646,3019.7,3018.8,0.00234376]
[1769563355665,0.14529129,3019.6,3017.6,5.8883271]
[1769563355866,0.14529129,3019.4,3017.5,7.50062109]
[1769563356173,0.14529129,3019.4,3017.5,1.61229399]
[1769563356572,0.14529129,3019.4,3017.5,7.50062109]
[1769563356774,0.14529129,3019.4,3017.5,7.50395692]
[1769563357260,0.14529129,3019.4,3017.5,7.66987692]
[1769563357873,0.14529129,3019.4,3017.6,0.14235901]
[1769563359269,0.14529129,3019.4,3017.6,5.8883271]
[1769563359475,0.14529129,3019.2,3017.7,0.14235901]
[1769563359675,0.14529129,3019.0,3017.7,0.14235901]
[1769563365874,0.31114129,3018.9,3017.7,0.14235901]
[1769563366178,0.14529129,3018.7,3017.5,0.00333583]
[1769563366380,44.35729399,3019.1,3017.2,0.61909172]
[1769563366381,0.14529129,3018.4,3017.2,0.61909172]
[1769563366577,0.14529129,3018.2,3017.2,0.61909172]
[1769563367475,0.14795808,3018.2,3017.2,0.62175576]
[1769563368168,0.00266679,3018.2,3017.3,0.10185905]
[1769563368573,0.14795808,3018.2,3017.3,0.10185905]
[1769563370779,0.14795808,3018.2,3017.2,0.62175576]
[1769563372485,0.14795808,3018.2,3017.2,0.72263898]
[1769563373787,0.14795808,3018.2,3017.2,0.62175576]
[1769563375484,0.14070079,3017.8,3015.9,0.166]
[1769563375683,0.14816253,3017.6,3015.7,5.8883271]
[1769563375987,0.14816253,3016.9,3015.2,0.61909172]
[1769563376383,0.14816253,3016.9,3015.2,0.6217366]
[1769563376887,0.1481626,3016.5,3015.2,0.6217366]
[1769563377583,0.1481626,3016.5,3015.2,0.62343563]
[1769563377982,0.1481626,3016.5,3015.3,0.00169903]
[1769563380290,0.1481626,3016.5,3015.2,0.6217366]
[1769563380790,0.1481626,3016.5,3015.2,0.6323435]
[1769563381092,0.1481626,3016.5,3015.3,0.01125738]
[1769563381486,2.08852899,3016.8,3015.3,0.01125738]
[1769563381694,0.14252899,3016.7,3015.2,0.6217366]
[1769563381891,0.14252899,3016.7,3015.2,0.63299398]
[1769563382287,0.14252899,3016.7,3015.3,0.01125562]
[1769563385194,0.14645192,3017.2,3015.4,0.00340539]
[1769563385486,0.14645192,3017.2,3015.6,0.00340539]
[1769563385688,0.14645192,3017.2,3015.7,0.00340539]
[1769563385895,40.94645192,3017.4,3015.7,0.00340539]
[1769563386195,0.146452,3017.3,3015.7,0.00340539]
[1769563388198,0.146452,3017.3,3015.8,0.00219825]
[1769563388697,0.146452,3017.3,3015.9,0.00219825]
[1769563389495,0.146452,3017.3,3016.0,0.00219668]
[1769563389700,5.41205336,3017.5,3016.0,0.00219668]
[1769563389900,0.14705336,3017.4,3016.0,0.00219668]
[1769563390594,0.14705336,3017.4,3016.1,0.00299203]
[1769563390893,0.14665498,3017.9,3016.1,0.00299203]
[1769563391298,0.14665498,3017.9,3016.2,0.00289059]
[1769563391803,0.14665498,3017.9,3016.4,0.16887059]
[1769563392000,0.14665498,3017.9,3016.5,0.00289059]
[1769563392997,0.14665498,3017.9,3016.6,0.00288907]
[1769563395904,0.14665498,3017.9,3016.7,0.00276447]
[1769563398103,0.14665498,3017.9,3016.8,0.00330219]
[1769563400404,0.14913633,3018.1,3016.8,1.61229399]
[1769563400708,0.14913633,3018.1,3016.4,1.61229399]
[1769563400906,0.14913633,3018.1,3017.1,0.16594]
[1769563401411,0.00266679,3018.2,3016.4,1.61229399]
[1769563401607,0.00266679,3018.2,3016.8,1.61229399]
[1769563401808,0.00266679,3018.2,3017.3,0.16593]
[1769563402009,0.15180318,3018.2,3017.3,0.16593]
[1769563404211,0.15180318,3018.2,3017.4,0.16592]
[1769563404411,0.15180318,3018.2,3017.4,0.16996152]
[1769563407706,0.14882429,3018.7,3017.6,1.77915468]
[1769563408606,0.15185606,3018.7,3017.6,1.77915468]
[1769563411514,0.15185606,3018.7,3017.8,0.1659]
[1769563411812,0.00303177,3018.7,3018.0,0.16589]
[1769563412112,0.14985964,3018.9,3018.0,0.16589]
[1769563412715,0.14995603,3019.3,3018.2,1.77912468]
[1769563413006,0.15352368,3019.3,3018.2,1.77912468]
[1769563418008,0.15352368,3019.3,3018.8,1.61324468]
[1769563418009,0.00356765,3019.3,3018.8,1.61324468]
[1769563418212,0.15047308,3019.9,3018.8,1.61324468]
[1769563419317,0.15383699,3019.9,3018.8,1.77908468]
[1769563419713,40.96574,3020.8,3018.8,1.61324468]
[1769563419920,0.15047312,3020.7,3020.1,1.61324468]
[1769563420118,0.15231381,3021.2,3019.8,1.61324468]
[1769563420312,0.15231381,3020.9,3019.7,0.1658]
[1769563420821,0.15631633,3020.9,3019.7,0.16973403]
[1769563423014,0.14902733,3020.6,3019.7,0.00393403]
[1769563426222,0.14902733,3020.6,3019.3,1.77906468]
[1769563427015,0.14902733,3020.6,3019.0,1.61324468]
[1769563427216,0.14902733,3020.6,3019.0,1.61668951]
[1769563430022,0.15546787,3020.3,3019.0,1.61668951]
[1769563430217,0.15546787,3020.3,3019.0,0.00344483]
[1769563431525,0.15546789,3020.0,3019.0,0.00344483]
[1769563434925,0.15630452,3020.3,3019.1,1.61324468]
[1769563438232,0.15102122,3019.9,3019.0,0.00344483]
[1769563439536,0.15102122,3019.9,3018.4,0.16587]
[1769563440333,0.15102122,3019.9,3018.4,0.16991056]
[1769563440931,0.15102122,3019.9,3018.4,0.00404056]
[1769563443038,0.15457387,3019.8,3018.4,0.00404056]
[1769563444836,0.32036387,3019.8,3018.4,0.00404056]
[1769563445042,0.15600095,3019.6,3018.4,0.00404056]
[1769563449633,0.15180647,3019.3,3017.6,10.8429017]
[1769563449836,0.15180647,3019.0,3017.2,4.9545746]
[1769563450038,0.15180647,3018.9,3017.2,4.9545746]
[1769563450243,0.15180647,3018.9,3017.1,4.9545746]
[1769563450640,0.15180647,3018.9,3017.1,4.95800221]
[1769563452438,0.15180647,3018.9,3017.1,0.00342761]
[1769563452846,0.15024248,3018.8,3017.1,0.00342761]
[1769563453640,0.3161025,3018.6,3017.1,0.00342761]
[1769563453845,0.1502425,3018.5,3017.1,0.00342761]
[1769563457642,0.15042914,3018.4,3017.1,0.00342761]
[1769563462156,0.16588,3018.3,3017.1,0.00342761]
[1769563462358,0.14911646,3018.1,3016.1,1.945]
[1769563463162,0.14911646,3018.1,3016.0,1.945]
[1769563464164,0.15019282,3018.0,3015.9,2.11427875]
[1769563464761,0.15019136,3017.9,3015.9,0.16927875]
[1769563465068,0.31609136,3017.9,3015.9,0.16927875]
[1769563465265,0.15019138,3017.8,3015.9,0.16927875]
[1769563465764,0.15019138,3017.4,3016.0,1.61468549]
[1769563467569,0.15019138,3017.4,3015.9,0.16927875]
[1769563468066,0.15038302,3017.8,3016.0,0.166]
[1769563468671,0.15038302,3017.8,3016.3,1.61467438]
[1769563468868,0.15038302,3017.8,3016.4,0.16598]
[1769563469069,0.15038302,3017.8,3016.5,0.16597]
[1769563470266,0.15116105,3018.1,3016.6,0.16597]
[1769563470671,0.15116105,3018.1,3016.6,2.11197]
[1769563470971,0.15116105,3018.1,3016.7,0.16596]
[1769563473471,0.15116105,3018.1,3016.8,0.16596]
[1769563473871,0.15116105,3018.1,3016.9,0.16595]
[1769563478874,0.15116105,3018.1,3017.0,0.16595]
[1769563483069,0.15116105,3018.1,3016.4,0.16598]
[1769563483269,0.15406529,3017.9,3016.4,0.16598]
[1769563489581,0.15406529,3017.9,3015.9,0.00326875]
[1769563489776,0.15651718,3017.2,3015.9,0.00326875]
[1769563489978,0.15651718,3017.0,3015.0,0.16606]
[1769563491075,0.15651718,3017.0,3015.2,0.62198927]
[1769563492192,0.15695363,3016.9,3015.2,0.62198927]
[1769563496289,0.15813921,3016.8,3015.2,0.62198927]
[1769563499789,0.15813921,3016.8,3015.2,0.78802927]
[1769563499989,0.15813921,3016.8,3015.3,0.16604]
[1769563505798,0.15813921,3016.8,3015.2,0.62198927]
[1769563506098,0.15813921,3016.8,3015.7,0.16602]
[1769563506395,0.15813921,3016.8,3015.8,0.16601]
[1769563506596,0.15319536,3017.1,3016.1,0.166]
[1769563506893,0.15319536,3017.1,3016.2,0.16599]
[1769563507492,1.947,3017.7,3016.3,0.16598]
[1769563507493,0.15319537,3017.3,3016.3,0.16598]
[1769563509098,0.15319537,3017.3,3016.4,0.16598]
[1769563510396,0.15321654,3017.6,3016.5,0.16597]
[1769563516793,0.15321654,3017.6,3016.6,0.16597]
[1769563517597,0.15321654,3017.6,3016.7,0.16596]
[1769563526405,0.15321654,3017.6,3016.1,0.16599]
[1769563527601,0.1546265,3017.2,3016.1,0.16599]
[1769563527799,0.1546265,3017.2,3016.0,1.946]
[1769563528607,0.1546265,3017.2,3015.8,1.61495719]
[1769563529204,0.1546265,3017.2,3015.8,1.78096719]
[1769563529407,0.1546265,3017.2,3016.1,1.61495719]
[1769563531012,0.1546265,3017.2,3016.4,1.61495719]
[1769563532312,0.1546265,3017.2,3016.1,1.61495719]
[1769563534011,0.15444714,3017.8,3016.4,1.61495719]
[1769563534218,0.15444714,3017.8,3016.7,1.61495719]
[1769563536824,0.15444714,3017.8,3017.0,1.61495719]
[1769563537026,0.15444714,3017.8,3016.7,1.61495719]
[1769563538118,0.15444714,3017.8,3016.5,6.0542971]
[1769563538313,0.1531165,3017.7,3016.5,5.8883271]
[1769563538520,0.1531165,3017.7,3016.4,7.50328429]
[1769563538719,0.1531165,3017.7,3016.4,5.8883271]
[1769563539926,0.1531165,3017.7,3016.2,5.8883271]
[1769563540118,0.1531165,3017.7,3016.4,1.61495719]
[1769563541829,0.1531165,3017.7,3016.2,5.8883271]
[1769563543032,0.15079869,3017.4,3016.2,5.8883271]
[1769563543331,0.15079869,3017.4,3016.0,0.166]
[1769563544028,0.15079869,3017.4,3016.1,1.61495719]
[1769563547530,0.15079869,3017.4,3016.4,1.61495719]
[1769563548731,0.15079869,3017.4,3016.1,1.61495719]
[1769563553435,0.15079869,3017.4,3016.1,7.50328429]
[1769563553939,0.15296031,3017.1,3015.8,13.16417596]
[1769563554142,0.15296031,3017.1,3015.8,5.8883271]
[1769563554331,0.15296031,3017.1,3015.7,7.8343271]
[1769563554529,0.15283241,3016.8,3015.7,7.8343271]
[1769563554742,0.15283241,3016.8,3015.6,7.50328429]
[1769563555743,0.15283241,3016.8,3015.6,5.8883271]
[1769563555947,0.15283241,3016.8,3015.4,5.8883271]
[1769563557246,0.15283241,3016.8,3015.3,7.50328429]
[1769563557947,0.15738287,3016.2,3015.2,0.62198927]
[1769563558142,0.16081952,3016.2,3015.2,0.62198927]
[1769563560334,0.16081952,3016.2,3015.2,2.23694646]
[1769563560541,0.00343665,3016.2,3015.2,2.23694646]
[1769563562347,0.1604592,3016.2,3015.2,2.23694646]
[1769563562546,0.00343665,3016.2,3015.5,1.61495719]
[1769563565448,0.00343665,3016.2,3015.2,2.23694646]
[1769563565651,0.16428531,3016.2,3015.2,2.23694646]
[1769563575763,0.16428531,3016.2,3015.2,0.62198927]
[1769563582268,0.16428531,3016.2,3015.2,2.23694646]
[1769563582563,0.00343665,3016.2,3015.2,2.23694646]
[1769563582768,0.00343665,3016.2,3015.2,0.62198927]
[1769563583067,0.16415908,3016.2,3015.2,0.62198927]
[1769563585565,0.16415908,3016.2,3015.1,1.61495719]
[1769563585871,0.16196422,3015.3,3013.9,7.27584886]
[1769563586066,0.16196422,3015.3,3014.1,1.61495719]
[1769563586666,0.16196422,3015.3,3014.1,1.61851021]
[1769563586868,0.16196422,3015.3,3014.4,1.61495719]
[1769563587970,0.16196422,3015.3,3014.1,1.61851021]
[1769563588272,0.16196422,3015.3,3014.1,0.00355302]
[1769563593774,0.16140067,3015.2,3014.1,0.00355302]
[1769563597377,0.16164008,3015.1,3014.1,0.00355302]
[1769563599775,0.16158879,3014.9,3014.1,0.00355302]
[1769563600076,0.15982306,3014.1,3012.2,10.322]